Cogmind - Beta 16 @@@ ROGUE MODE // 2025.11.10 @ 04:29:15 // Winter2019/RPGLIKE Player: Toaster Result: Destroyed by H-81 Overseer with Heavy Linear Accelerator Performance ------------- Evolutions (8) 4000 Regions Visited (22) 4400 Robots Destroyed (569) 2845 Value Destroyed (30406) 30406 Prototype IDs (53) 1060 Alien Tech Used (0) 0 Bonus (14753) 14753 TOTAL SCORE: 57464 Bonus ------- High Alert Combat Kills 4656 Follower Combat Kills 2568 Network Hubs Disabled 200 Registered with UFD 300 MAIN.C Attacked Warlord 500 Warlord Defense Kills 4506 Built Enhanced Grunts 300 A7 Reached Mainframe 300 Met R17 at Cetus 500 Met R17 at Research 2000 Friendly Fire -1077 Cogmind --------- Core Integrity 0/1750 Matter 284/300 Energy 374/805 System Corruption 2% Temperature Cool (0) Movement Walking (110) Location -2/Research Parts ------- > --- POWER (4) -------- Neutrino Core Particle Reactor Quantum Reactor > --- PROPULSION (4) --- Advanced Myomer Leg Improved Thunder Leg Enhanced Biometal Leg Enhanced Biometal Leg > --- UTILITY (10) ----- Advanced Coolant Injector Experimental Signal Interpreter Experimental Phase Shifter (fused) Graphene Brace Experimental EM Shield Advanced Hacking Suite Experimental Hacking Suite > --- WEAPON (5) ------- Heavy Laser Enhanced Quantum Rifle Compact Linear Accelerator Compact Linear Accelerator Gamma Bomb Array > --- INVENTORY (1) ---- (None) Peak State ------------ > --- POWER ------------ Light Fission Core Neutrino Core Particle Reactor Quantum Reactor > --- PROPULSION ------- Advanced Myomer Leg Improved Thunder Leg Enhanced Biometal Leg Enhanced Biometal Leg > --- UTILITY ---------- Advanced Coolant Injector Experimental Signal Interpreter Experimental Phase Shifter Centrium Medium Armor Plating Graphene Brace Experimental EM Shield Advanced Hacking Suite Experimental Hacking Suite VL-GR5's Exoskeleton "Deathgrip" > --- WEAPON ----------- Gamma Rifle Heavy Laser Enhanced Quantum Rifle Compact Linear Accelerator Compact Linear Accelerator Gamma Bomb Array > --- INVENTORY -------- (None) [Rating: 189] Favorites ----------- Power Neutrino Core Engine Improved Ion Engine Power Core Neutrino Core Reactor Particle Reactor Propulsion Enhanced Biometal Leg Leg Enhanced Biometal Leg Utility Experimental Signal Interpreter Device EM Shield Processor Experimental Signal Interpreter Hackware Advanced System Shield Protection Centrium Medium Armor Plating Weapon Storm Laser Energy Gun Storm Laser Energy Cannon Heavy Particle Cannon Ballistic Gun Shotgun Ballistic Cannon Hardcell Cannon Launcher Gamma Bomb Array Special Weapon Mining Laser Build | -11 -10 -10 -8 -8 -6 -6 -6 -6 -5 -5 -5 -5 -5 -5 -4 -4 -4 -4 -3 -3 -3 -2 ------- Run | Yrd Mat Sub Rec Scr Fac Low Low Zio Pro Fac Ext Cet Arc Hub Fac Upp Upp War Pro Res Arm Res Slots Evolved 19 | 4 3 2 1 1 . . 1 1 2 . 1 1 . 1 1 . . . . . . . Power 3 | 1 . . . . . . . . 1 . . . . . 1 . . . . . . . Propulsion 3 | 1 1 . . . . . 1 . . . . . . . . . . . . . . . Utility 9 | 1 . 2 . 1 . . . 1 1 . 1 1 . 1 . . . . . . . . Weapon 4 | 1 2 . 1 . . . . . . . . . . . . . . . . . . . Parts Attached 123 | 6 8 5 8 7 11 4 5 10 5 12 1 4 3 8 8 . . 1 1 5 3 8 Power 12 | 2 1 . 1 1 . . 1 . 2 1 . . 1 1 1 . . . . . . . Engine 5 | 2 1 . . 1 . . 1 . . . . . . . . . . . . . . . Core 5 | . . . 1 . . . . . 2 1 . . . . 1 . . . . . . . Reactor 2 | . . . . . . . . . . . . . 1 1 . . . . . . . . Propulsion 25 | 2 1 . 3 . 4 . 1 1 1 5 . . . 2 2 . . . . 2 . 1 Treads . | . . . . . . . . . . . . . . . . . . . . . . . Leg 25 | 2 1 . 3 . 4 . 1 1 1 5 . . . 2 2 . . . . 2 . 1 Wheel . | . . . . . . . . . . . . . . . . . . . . . . . Hover . | . . . . . . . . . . . . . . . . . . . . . . . Flight . | . . . . . . . . . . . . . . . . . . . . . . . Utility 48 | . 2 2 2 4 3 1 . 6 2 6 1 3 1 4 4 . . . 1 2 2 2 Device 21 | . 2 . 1 1 1 . . 2 1 2 . . . 3 3 . . . 1 1 2 1 Storage . | . . . . . . . . . . . . . . . . . . . . . . . Processor 7 | . . . 1 1 1 . . 3 . . . . . 1 . . . . . . . . Hackware 6 | . . 1 . . . . . 1 1 2 . . . . . . . . . . . 1 Protection 14 | . . 1 . 2 1 1 . . . 2 1 3 1 . 1 . . . . 1 . . Artifact . | . . . . . . . . . . . . . . . . . . . . . . . Weapon 38 | 2 4 3 2 2 4 3 3 3 . . . 1 1 1 1 . . 1 . 1 1 5 Energy Gun 14 | 2 . 2 1 . . 3 . 1 . . . . . . . . . 1 . 1 . 3 Energy Cannon 2 | . . . . . . . 1 1 . . . . . . . . . . . . . . Ballistic Gun 11 | . 4 . 1 1 1 . 2 1 . . . . 1 . . . . . . . . . Ballistic Cannon 7 | . . . . 1 1 . . . . . . . . 1 1 . . . . . 1 2 Launcher 3 | . . . . . 2 . . . . . . 1 . . . . . . . . . . Special Weapon 1 | . . 1 . . . . . . . . . . . . . . . . . . . . Impact Weapon . | . . . . . . . . . . . . . . . . . . . . . . . Slashing Weapon . | . . . . . . . . . . . . . . . . . . . . . . . Piercing Weapon . | . . . . . . . . . . . . . . . . . . . . . . . Special Melee Weapon . | . . . . . . . . . . . . . . . . . . . . . . . Unidentified Prototypes 21 | . . . . . . 1 . 4 . 1 . 1 . 4 2 . . 1 . 3 1 3 Parts Lost 8 | . . . . . . . . . 1 . . . . 1 . . . . . . . 6 Power 1 | . . . . . . . . . . . . . . . . . . . . . . 1 Propulsion . | . . . . . . . . . . . . . . . . . . . . . . . Utility 6 | . . . . . . . . . 1 . . . . 1 . . . . . . . 4 Weapon 1 | . . . . . . . . . . . . . . . . . . . . . . 1 Highest Loss Streak 4 | . . . . . . . . . 1 . . . . 1 . . . . . . . 4 To Critical Strikes . | . . . . . . . . . . . . . . . . . . . . . . . Average Backups . | . . . 1 . . . 1 . . . 1 1 1 1 1 1 1 1 1 1 . . Power . | . . . . . . . . . . . . . . . . . . . . . . . Propulsion . | . . . . . . . . . . . . . . . . . . . . . . . Utility . | . . . . . . . 1 . . . . . . . . . . . . . . . Weapon . | . . . 1 . . . . . . . 1 1 1 1 1 1 1 1 1 1 . . Tool/Special . | . . . . . . . . . . . . . . . . . . . . . . . Unused Backups 2 | . . . . 1 1 . . . . . . . . . . . . . . . . . Power . | . . . . . . . . . . . . . . . . . . . . . . . Propulsion . | . . . . . . . . . . . . . . . . . . . . . . . Utility 1 | . . . . . 1 . . . . . . . . . . . . . . . . . Weapon 1 | . . . . 1 . . . . . . . . . . . . . . . . . . Tool/Special . | . . . . . . . . . . . . . . . . . . . . . . . Average Slot Usage (%) 86 | . 96 96 91 91 97 80 91 86 75 83 84 85 84 79 81 82 82 80 78 77 77 81 Engine 6 | . 22 16 12 6 6 6 7 11 10 7 5 4 3 . . . . . . . . . Core 5 | . . . 1 6 6 6 4 . 4 7 10 9 9 8 7 8 8 8 8 8 7 6 Reactor 2 | . . . . . . . . . . . . . . 4 8 8 8 8 8 8 7 7 Leg 19 | . 23 25 21 20 20 20 21 23 21 20 20 19 19 18 16 17 17 17 17 16 16 15 Device 15 | . 19 13 6 11 17 13 12 15 14 17 15 14 14 15 17 17 17 17 17 16 16 17 Processor 4 | . . . 1 6 6 6 6 5 5 5 5 4 4 4 4 4 4 4 4 4 3 3 Hackware 5 | . . 3 5 . . . . . 5 9 10 9 9 9 8 8 8 8 8 8 7 7 Protection 6 | . . 2 7 3 8 6 6 5 3 2 8 13 13 7 7 8 8 8 8 8 7 4 Energy Gun 7 | . 3 12 18 15 6 12 17 7 5 5 5 4 4 4 4 4 4 4 4 3 3 7 Ballistic Gun 7 | . 27 19 14 13 11 . 10 8 5 5 5 1 4 2 . . . . . . . . Ballistic Cannon 2 | . . . . 5 10 . . . . . . . . 1 3 3 3 2 . . . 5 Peak Build Rating 189 | 6 17 25 37 44 58 63 71 87 96 111 116 138 141 155 167 168 168 176 176 178 177 189 Average Rating 102 | 4 13 21 31 39 51 59 68 80 90 100 114 134 135 129 163 167 167 170 175 176 175 177 On Entrance 101 | . 6 17 25 37 44 48 63 71 86 90 111 116 135 129 155 167 167 167 176 176 177 163 Avg Prop Armor Cover (%) . | . . . . . . . . . . . . . . . . . . . . . . . Naked Turns . | . . . . . . . . . . . . . . . . . . . . . . . Heaviest Build 133 | 14 22 40 47 47 50 50 59 64 71 74 82 93 96 103 127 126 126 124 119 117 127 133 Greatest Support 128 | 25 35 35 50 50 59 59 74 76 79 117 117 117 117 121 128 128 128 128 128 128 128 128 Greatest Overweight (x) 1 | . . 1 1 . 1 . . 1 1 1 . . . 1 1 . . . . 1 . 1 Average Overweight (x) . | . . . . . . . . . . . . . . . . . . . . . . . Largest Inventory Capacity 1 | 1 1 1 1 1 1 1 1 1 1 1 1 1 1 1 1 1 1 1 1 1 1 1 Average Capacity . | . 1 1 1 1 1 1 1 1 1 1 1 1 1 1 1 1 1 1 1 1 1 1 Most Carried 1 | . 1 1 1 1 1 1 1 1 1 1 1 1 1 1 1 1 1 1 1 1 1 1 Average Carried . | . . . 1 . . . 1 . . . 1 1 1 1 1 1 1 1 . 1 . . Final Capacity 1 | 1 1 1 1 1 1 1 1 1 1 1 1 1 1 1 1 1 1 1 1 1 1 1 Final Carried 1 | . 1 1 1 . . 1 1 1 . 1 1 1 1 1 1 1 1 1 1 1 . . Class Distribution -------------------- 55% | Hacker-Tank 12% | Gunner 11% | Hacker-Skirmisher 9% | Scavenger-Gunner 5% | Derelict-Tank Dominant Class ---------------- Gunner | -10/Materials Scavenger-Gunner | -10/Subcaves Gunner | -8/Recycling Gunner | -8/Scraptown Hacker-Tank | -6/Factory Hacker-Skirmisher | -6/Lower Caves Hacker-Skirmisher | -6/Lower Caves Hacker-Skirmisher | -6/Zion Hacker-Skirmisher | -5/Proximity Caves Hacker-Tank | -5/Factory Hacker-Tank | -5/Extension Hacker-Tank | -5/Cetus Hacker-Tank | -5/Archives Hacker-Tank | -5/Hub_04(d) Hacker-Tank | -4/Factory Hacker-Tank | -4/Upper Caves Hacker-Tank | -4/Upper Caves Hacker-Tank | -4/Warlord Hacker-Tank | -3/Proximity Caves Hacker-Tank | -3/Research Hacker-Tank | -3/Armory Hacker-Tank | -2/Research Resources | -11 -10 -10 -8 -8 -6 -6 -6 -6 -5 -5 -5 -5 -5 -5 -4 -4 -4 -4 -3 -3 -3 -2 ----------- Run | Yrd Mat Sub Rec Scr Fac Low Low Zio Pro Fac Ext Cet Arc Hub Fac Upp Upp War Pro Res Arm Res Matter Collected 7798 | 239 474 492 128 70 1193 432 261 126 125 380 169 115 15 412 693 274 210 10 40 90 40 1810 Remotely 3125 | . 453 492 128 70 1193 432 261 96 . . . . . . . . . . . . . . Salvage Created 26368 | . 804 850 155 . 691 605 375 . 236 1813 1425 381 147 2010 4199 581 1240 2155 854 1272 1393 5182 Parts 1363 | . 53 73 15 . 40 26 20 . 16 97 53 30 3 109 192 45 54 100 28 57 91 261 Haulers Intercepted 2 | . . . . . . . . . . . . . . . 1 . . . . . . 1 Recyclers Shooed 15 | 1 2 . 3 . 1 . . . . 2 . . . . 1 . . . . . . 5 Parts Field Recycled . | . . . . . . . . . . . . . . . . . . . . . . . Retrieved Matter . | . . . . . . . . . . . . . . . . . . . . . . . Parts Self-Destructed 134 | . . 14 . . . 10 22 . 22 . . . . . . 26 22 . 18 . . . Prevented 71 | . . 3 . . . 18 . . . . . . . . . 19 30 . 1 . . . Parts Restored . | . . . . . . . . . . . . . . . . . . . . . . . Kills | -11 -10 -10 -8 -8 -6 -6 -6 -6 -5 -5 -5 -5 -5 -5 -4 -4 -4 -4 -3 -3 -3 -2 ------- Run | Yrd Mat Sub Rec Scr Fac Low Low Zio Pro Fac Ext Cet Arc Hub Fac Upp Upp War Pro Res Arm Res Combat Hostiles Destroyed 459 | . 23 24 4 . 20 14 10 . 8 31 22 8 1 32 54 17 20 33 21 26 26 65 Melee 1 | . . . . . . . . . . . . . . . . . . . 1 . . . Guns 225 | . 23 23 3 . 11 5 7 . 8 31 20 . 1 30 26 7 8 2 1 3 1 15 Cannons 43 | . . . . . 8 . . . . . . . . 1 7 1 2 . . . . 24 AOE 134 | . . 1 1 . 1 6 3 . . . . 1 . . 11 5 7 30 14 21 22 11 Classes Destroyed 29 | . 6 4 . . 5 1 1 . 1 . 2 . . 3 1 . . 2 . 2 1 . Worker 24 | . 1 . . . 1 . . . . 3 . . . 5 6 . . . . . . 8 Builder 29 | . . . . . 1 . . . . 1 1 . . 4 6 . . . . 2 . 14 Tunneler 7 | . . . . . 1 . . . . 1 . . . 1 2 . . . . 1 . 1 Hauler 2 | . . . . . . . . . . . . . . . 1 . . . . . . 1 Recycler 8 | . 1 . . . . . . . . . 1 . . 1 2 . . . . . . 3 Carrier 1 | . . . . . . . . . . . . . . 1 . . . . . . . . Minesweeper 1 | . . . . . . . 1 . . . . . . . . . . . . . . . Operator 5 | . 1 . . . . . . . . 1 1 . . 1 1 . . . . . . . Turret 2 | . . 2 . . . . . . . . . . . . . . . . . . . . Watcher 28 | . 3 . . . 1 . . . . 1 . 2 . 3 6 . . . . 1 1 10 Swarmer 61 | . 3 4 . . . . 6 . 3 4 . . . . 12 6 5 3 5 5 . 5 Cutter 4 | . . . . . . . . . . . . . . . . . . . . . 4 . Grunt 137 | . 20 3 . . 4 8 4 . 1 7 9 . . 16 8 6 6 16 6 9 . 14 Brawler 15 | . . . . . . 1 . . . 1 . . . 1 3 . 2 1 4 . . 2 Duelist 14 | . . . . . 1 3 . . . . . . . 3 . . 1 1 3 1 . 1 Protector 6 | . . . . . . . . . . . 1 . . 2 . . 1 2 . . . . Sentry 44 | . . 1 4 . 5 1 . . . 5 6 . 1 2 7 2 1 . 1 1 6 1 Demolisher 4 | . . . . . . . . . . . . . . 1 . . . . . 3 . . Specialist 7 | . . . . . . . . . . . 1 . . 2 2 . . 1 . . 1 . Hunter 56 | . . . . . 3 . . . 2 3 2 . . 1 8 2 2 2 2 2 6 21 Programmer 65 | . . . . . 7 1 . . 1 11 . . . . 12 . 2 3 . 2 6 20 Heavy 6 | . . . . . . . . . . . . . . 1 2 . . . . . 2 1 Behemoth 10 | . . . . . . . . . 1 . 2 . . . . 1 . 3 . 2 1 . Cetus Guard 8 | . . . . . . . . . . . . 8 . . . . . . . . . . Lightning 3 | . . . . . . . . . . . . . . 3 . . . . . . . . Striker 1 | . . . . . . . . . . . . . . . . . . . . 1 . . Executioner 1 | . . . . . . . . . . . . . . . . . . 1 . . . . Artisan 1 | . . 1 . . . . . . . . . . . . . . . . . . . . Subdweller 16 | . . 16 . . . . . . . . . . . . . . . . . . . . Surgeon 1 | . . . . . . . . . . . . . . . . . . 1 . . . . Thug 1 | . . . . . . . . . . . . . . 1 . . . . . . . . Butcher 1 | . . . . . . . . . . . 1 . . . . . . . . . . . Revision 1 | . . . . . . . . . . . . . . . . . . . . 1 . . Best Kill Streak 35 | . 5 4 1 . 4 6 7 . 3 6 5 5 1 10 35 7 5 26 11 8 7 20 Combat Bots Only 25 | . 5 4 1 . 4 6 7 . 3 4 4 4 1 8 24 7 5 25 11 5 7 8 Max Kills in Single Turn 6 | . 2 2 1 . 2 2 2 . 1 3 2 1 1 3 6 3 3 5 3 3 3 6 Gunslinging 1 | . 1 1 . . . . 1 . . 1 . . . 1 . . . . . . . . Exploded 5 | . . 1 1 . 1 2 2 . . . . 1 . . 3 3 3 5 3 3 3 4 Melee 1 | . . . . . . . . . . . . . . . . . . . 1 . . . Uniques/NPCs Destroyed . | . . . . . . . . . . . . . . . . . . . . . . . Combat | -11 -10 -10 -8 -8 -6 -6 -6 -6 -5 -5 -5 -5 -5 -5 -4 -4 -4 -4 -3 -3 -3 -2 -------- Run | Yrd Mat Sub Rec Scr Fac Low Low Zio Pro Fac Ext Cet Arc Hub Fac Upp Upp War Pro Res Arm Res Hostile Shots Fired 2666 | . 91 121 6 . 259 85 34 . 92 127 151 18 3 194 332 76 57 52 38 97 203 630 Missed 1411 | . 28 49 3 . 115 31 15 . 39 56 56 10 1 67 221 48 39 34 24 55 133 387 Hits 1255 | . 63 72 3 . 144 54 19 . 53 71 95 8 2 127 111 28 18 18 14 42 70 243 Melee 24 | . . . . . 2 3 . . . . . . . 11 . . . . 1 . 4 3 Projectile 1231 | . 63 72 3 . 142 51 19 . 53 71 95 8 2 116 111 28 18 18 13 42 66 240 AOE 4 | . . . . . . . . . . . . . . 1 . . . . . 3 . . Critical Strikes 67 | . . 1 . . 3 3 2 . 1 2 4 5 . 17 6 . 2 . 2 4 1 14 Actively Blocked 23 | . . . . . . . . . . . . . . . . . 2 . 2 4 1 14 Part Disruptions 4 | . . . . . . . . . . . 1 . . . . . . . . . . 3 Damage Taken 24350 | . 710 1036 38 . 1139 1213 312 . 1082 1378 1794 208 58 2760 2082 610 392 620 352 1707 2229 4630 Core 16061 | . 554 683 18 . 807 753 202 . 628 1038 1231 127 22 1807 1272 377 228 440 199 1080 1360 3235 Absorbed by Shields 1058 | . . . . . 523 . . . . . 124 96 . 315 . . . . . . . . Redirected to Core 14341 | . 477 617 18 . 750 669 154 . 600 990 1042 127 22 1541 1117 359 184 375 199 976 1237 2887 Ignored by Resistances 3307 | . . . . . 88 59 . . 5 195 8 5 . 263 361 91 89 . . 105 243 1795 Regen/Repaired (Parts) 471 | . . . . . . . . . . 3 . . . . 468 . . . . . . . Core Remaining (%) 74 | 100 . . . 100 . . . . 51 . . . . 38 . . . . 100 . 55 . Volleys Fired 742 | . 56 51 6 . 61 29 16 1 16 47 36 7 1 54 80 17 19 20 18 31 41 135 Largest 5 | . 4 4 4 . 5 3 5 2 2 2 2 2 2 2 2 2 2 1 1 1 1 5 Hottest 325 | . 100 156 156 . 212 219 291 150 283 283 283 283 283 297 305 305 305 300 300 300 300 325 Shots Fired 1775 | . 139 188 24 . 297 50 61 2 30 88 68 8 2 103 132 26 29 20 18 31 41 418 Gun 1290 | . 139 184 24 . 182 31 55 2 30 88 68 2 2 81 52 12 11 20 18 31 32 226 Cannon 396 | . . . . . 115 . 3 . . . . . . 22 67 10 10 . . . 7 162 Launcher 85 | . . . . . . 19 3 . . . . 6 . . 13 4 8 . . . 2 30 Special 4 | . . 4 . . . . . . . . . . . . . . . . . . . . Kinetic 877 | . 97 98 12 . 236 . 26 . 14 47 35 1 1 54 67 10 10 . . . 7 162 Thermal 583 | . 42 4 . . 4 31 32 2 16 41 33 1 1 49 52 12 11 20 18 31 32 151 Explosive 4 | . . . . . . 4 . . . . . . . . . . . . . . . . Electromagnetic 311 | . . 86 12 . 57 15 3 . . . . 6 . . 13 4 8 . . . 2 105 Robot Hit Streak 36 | . 11 18 7 . 8 9 7 1 6 12 16 14 11 20 18 13 10 36 24 29 25 29 Robot Miss Streak 21 | . 6 6 2 . 21 3 6 1 10 7 10 3 2 7 8 7 4 1 5 8 3 3 Penetration Max 2 | . . . . . . . . . . 2 1 . . 2 . . . . . . . . Secondary Targets 45 | . 5 4 . . . 2 3 . 1 9 9 . . 12 . . . . . . . . Max Gunslinging Chain 1 | . 1 1 . . . 1 1 . 1 1 1 . . 1 . . . . . . . . Shots Hit Robots 1280 | . 92 131 19 . 192 31 34 1 21 65 53 8 2 76 85 19 18 20 16 30 37 330 Core Hits 1566 | . 57 71 9 . 105 30 20 1 18 99 92 34 5 145 194 42 70 119 55 92 77 231 Critical Kills 11 | . 1 1 . . . . 3 . . 1 3 . 1 1 . . . . . . . . Critical Parts Destroyed 22 | . 1 . . . 1 . 4 . 2 8 5 . . 1 . . . . . . . . Critical Strikes 58 | . 6 2 . . 1 2 9 . 2 9 8 . 1 2 2 . 1 . . . 1 12 Burn 11 | . 4 . . . . 2 2 . . . . . . . . . . . . . . 3 Destroy 34 | . 2 2 . . 1 . 7 . 2 9 8 . 1 2 . . . . . . . . Blast 13 | . . . . . . . . . . . . . . . 2 . 1 . . . 1 9 Melee Attacks . | . . . . . . . . . . . . . . . . . . . . . . . Impact . | . . . . . . . . . . . . . . . . . . . . . . . Slashing . | . . . . . . . . . . . . . . . . . . . . . . . Piercing . | . . . . . . . . . . . . . . . . . . . . . . . Sneak Attacks . | . . . . . . . . . . . . . . . . . . . . . . . Combat Hostiles . | . . . . . . . . . . . . . . . . . . . . . . . Follow-up Attacks . | . . . . . . . . . . . . . . . . . . . . . . . Damage Inflicted 82805 | 3 1323 2094 359 . 3152 1671 741 22 1029 4074 4410 1353 159 7314 10364 1995 2743 7923 4011 5701 5225 17139 Guns 37691 | . 1317 1991 286 . 1687 450 537 22 1029 3987 4344 121 159 6615 6042 1206 1311 280 112 291 194 5710 Cannons 8905 | . . . . . 1245 . 25 . . . . . . 283 1194 111 148 . . . 196 5703 Explosions 35061 | . . 103 44 . 200 1199 177 . . . . 1232 . 390 2946 678 1230 7643 3257 5401 4835 5726 Melee . | . . . . . . . . . . . . . . . . . . . . . . . Ramming 1148 | 3 6 . 29 . 20 22 2 . . 87 66 . . 26 182 . 54 . 642 9 . . Kinetic 13449 | . 953 1006 126 . 2533 . 71 . 43 231 182 7 7 938 1194 111 148 . . . 196 5703 Thermal 54144 | . 364 103 44 . 226 450 573 22 986 3756 4162 414 152 5960 6759 1206 1422 7923 3369 5692 4874 5687 Explosive 179 | . . . . . . 179 . . . . . . . . . . . . . . . . Electromagnetic 13885 | . . 985 160 . 373 1020 95 . . . . 932 . 390 2229 678 1119 . . . 155 5749 Impact . | . . . . . . . . . . . . . . . . . . . . . . . Slashing . | . . . . . . . . . . . . . . . . . . . . . . . Piercing . | . . . . . . . . . . . . . . . . . . . . . . . Highest Corruption 7 | . . . . . 4 7 7 7 . 2 . . . 3 1 . . . . . . 2 Average Corruption 3 | . . . . . 2 6 7 7 . 1 . . . 1 1 . . . . . . 1 Corruption Purged 9 | . . . . . . . . . . 2 . . . 6 1 . . . . . . . Corruption Blocked . | . . . . . . . . . . . . . . . . . . . . . . . Effects 109 | . . . . . 36 26 28 1 . . . . . . . . . . . . . 18 Message Errors 32 | . . . . . 9 5 9 . . . . . . . . . . . . . . 9 Matter Fused 21 | . . . . . 6 6 9 . . . . . . . . . . . . . . . Heat Flow Errors 13 | . . . . . 7 3 3 . . . . . . . . . . . . . . . Energy Discharges 17 | . . . . . 8 2 3 1 . . . . . . . . . . . . . 3 Parts Rejected 1 | . . . . . 1 . . . . . . . . . . . . . . . . . Parts Fused 1 | . . . . . . . . . . . . . . . . . . . . . . 1 Data Loss (minor) 9 | . . . . . 1 2 2 . . . . . . . . . . . . . . 4 Data Loss (major) 2 | . . . . . 1 1 . . . . . . . . . . . . . . . . Misfires 5 | . . . . . . 3 2 . . . . . . . . . . . . . . . Alerts 2 | . . . . . 1 1 . . . . . . . . . . . . . . . . Weapon Failures 6 | . . . . . 2 3 . . . . . . . . . . . . . . . 1 Overload Shots . | . . . . . . . . . . . . . . . . . . . . . . . Overflow Damage 1126 | . . . . . 37 8 6 . . 14 . . . . 213 . 27 81 75 56 17 592 Projectiles 553 | . . . . . . . 6 . . . . . . . 23 . . . . . . 524 Explosions 429 | . . . . . 37 8 . . . . . . . . 92 . . 81 70 56 17 68 Melee 144 | . . . . . . . . . . 14 . . . . 98 . 27 . 5 . . . Knockbacks 107 | . . . . . 33 . . . . . . . . 6 3 . 1 . 2 . 1 61 Impact 3 | . . . . . . . . . . . . . . . . . 1 . 2 . . . Kinetic 92 | . . . . . 31 . . . . . . . . 5 3 . . . . . 1 52 Secondary 12 | . . . . . 2 . . . . . . . . 1 . . . . . . . 9 Self-Inflicted Damage 1585 | . . . . . . 136 . . . . . 10 . 75 12 26 21 . 101 372 681 151 Shots 118 | . . . . . . 10 . . . . . 2 . 1 6 10 8 . 4 17 31 29 Rammed . | . . . . . . . . . . . . . . . . . . . . . . . Targets Rammed 84 | 2 3 . 7 . 1 4 1 . . 4 5 . . 1 4 . 2 . 49 1 . . Kicked 84 | 2 3 . 7 . 1 4 1 . . 4 5 . . 1 4 . 2 . 49 1 . . Crushed . | . . . . . . . . . . . . . . . . . . . . . . . Highest Temperature 443 | . 443 130 216 . 224 124 289 . . 7 19 . . 37 174 220 119 396 147 187 197 72 Average Temperature 71 | . 137 26 93 . 87 65 74 . . 7 3 . . 8 60 76 48 161 57 55 67 28 Received Heat Transfer 3619 | . 318 264 9 . 192 417 108 . 78 189 385 9 9 696 93 54 66 123 30 255 54 270 Effects 3 | . 3 . . . . . . . . . . . . . . . . . . . . . Shutdowns 2 | . 2 . . . . . . . . . . . . . . . . . . . . . Energy Bleed 1 | . 1 . . . . . . . . . . . . . . . . . . . . . Siege Activations . | . . . . . . . . . . . . . . . . . . . . . . . Martial Activations . | . . . . . . . . . . . . . . . . . . . . . . . Shielding Activations . | . . . . . . . . . . . . . . . . . . . . . . . Robots Disrupted 4 | . . 1 . . 1 . . . . . . . . . . . 1 . . . . 1 Combat Hostiles 3 | . . . . . 1 . . . . . . . . . . . 1 . . . . 1 Robots Corrupted 44 | . . . . . . 2 . . . . . 7 . . 8 3 4 . 1 . 1 18 Combat Hostiles 39 | . . . . . . 2 . . . . . 7 . . 8 3 3 . . . 1 15 Parts Fried 81 | . . 4 2 . 1 3 . . . . . 8 . 2 12 5 8 . . . 1 35 Impact Corruptions 9 | . . . . . . . . . . 1 . . . . 3 . 2 . 2 . . 1 Robots Melted 16 | . . . . . . 1 . . . . 2 . . 1 2 1 . 1 4 2 2 . Combat Hostiles 16 | . . . . . . 1 . . . . 2 . . 1 2 1 . 1 4 2 2 . Parts Melted 206 | . 5 . . . . 5 . . 5 22 18 . . 11 35 7 10 26 13 16 25 8 Heat Transferred 66126 | . 1369 100 . . 180 1146 1309 50 1400 4800 5288 300 200 7475 8075 1575 1664 8415 3999 7159 5703 5919 Parts Sabotaged 1 | . . . . . . . . . . . . . . . . . . . 1 . . . Parts Stolen . | . . . . . . . . . . . . . . . . . . . . . . . Parts Stripped . | . . . . . . . . . . . . . . . . . . . . . . . Power Chain Reactions 30 | . . 1 1 . 3 . 1 . . . . 1 . . 7 . 3 . . . 1 12 Alert | -11 -10 -10 -8 -8 -6 -6 -6 -6 -5 -5 -5 -5 -5 -5 -4 -4 -4 -4 -3 -3 -3 -2 ------- Run | Yrd Mat Sub Rec Scr Fac Low Low Zio Pro Fac Ext Cet Arc Hub Fac Upp Upp War Pro Res Arm Res Maximum Alert Level 5 | . 1 . . . . . . . . 1 3 2 2 5 4 . . . . 1 3 4 Low Security (%) 61 | 100 45 . 100 . 100 . . . . 94 37 . . 18 20 . . . . 82 46 28 Level 1 14 | . 54 . . . . . . . . 5 38 . 98 1 7 . . . . 17 2 10 Level 2 12 | . . . . . . . . . . . 20 100 1 5 23 . . . . . 38 41 Level 3 7 | . . . . . . . . . . . 4 . . 1 45 . . . . . 12 17 Level 4 3 | . . . . . . . . . . . . . . 53 2 . . . . . . 1 Level 5 . | . . . . . . . . . . . . . . 18 . . . . . . . . High Security . | . . . . . . . . . . . . . . . . . . . . . . . Max Security . | . . . . . . . . . . . . . . . . . . . . . . . Peak Influence 1994 | . 289 . 185 . 179 . . . . 313 755 575 401 1994 1108 . . . . 291 823 1130 Initial 723 | . . . 165 . . . . . . . 151 417 208 77 723 . . . . 33 70 432 Average 281 | . 190 . 55 . 76 . . . . 95 297 497 305 1147 667 . . . . 74 318 430 Influence Increases 17597 | . 776 465 367 . 729 340 251 . 260 948 1872 358 223 2856 1721 370 569 881 450 743 1159 2259 Destroy 0b10 Robot/C 10040 | . 460 200 80 . 400 280 200 . 180 620 920 160 80 1080 1080 340 400 720 420 520 600 1300 Destroy 0b10 Robot/NC 620 | . 30 . . . 20 . 10 . 10 35 35 10 . 110 120 . 10 20 . 20 5 185 Destroy Leader 1794 | . 106 10 . . 162 30 10 . 50 162 84 . . 220 284 30 30 . 30 132 162 292 Allied During Kill 2268 | . . . . . . . 16 . 20 . 669 164 80 848 . . 39 141 . . 291 . Successful Hack 261 | . 20 . 2 . 62 . . . . 83 22 . . 8 . . . . . 48 8 8 Select Force Hacks 440 | . 160 . 280 . . . . . . . . . . . . . . . . . . . Disable Machine 375 | . . . . . 30 . . . . 15 30 . 45 105 15 . . . . 15 45 75 Anti-Garrison Action 150 | . . . . . . . . . . . . . . 150 . . . . . . . . Destroy Structure 944 | . . . 5 . 10 . . . . 18 22 24 18 320 162 . . . . 8 48 309 Lose Combat Pursuer 705 | . . 255 . . 45 30 15 . . 15 90 . . 15 60 . 90 . . . . 90 Influence Decreases 16477 | . 499 397 593 119 579 442 299 . 260 639 1435 583 523 1600 2120 890 681 580 1147 658 471 1962 Entered New Map 4369 | . . 133 180 119 . 56 10 . . . 158 329 313 144 754 400 107 446 747 17 65 391 Time Decay 7651 | . 499 264 413 . 448 386 269 . 220 438 559 214 190 386 616 490 574 74 400 491 306 414 Lost Part 70 | . . . . . . . . . . . . . . 10 . . . . . . . 60 Lost Ally 600 | . . . . . . . 20 . 40 . 160 40 20 160 . . . 60 . . 100 . Purge Threat 3787 | . . . . . 131 . . . . 201 558 . . 900 750 . . . . 150 . 1097 Squads Dispatched 97 | . 7 . . . 10 . . . . 9 4 . . 14 15 . 1 . 1 10 6 20 Investigation 18 | . 4 . . . . . . . . 2 2 . . 2 . . . . . 5 2 1 Extermination 24 | . . . . . 6 . . . . 6 . . . 1 4 . . . . . 2 5 Reinforcement 32 | . 3 . . . 1 . . . . 1 1 . . 5 5 . . . . 4 2 10 Assault 11 | . . . . . . . . . . . 1 . . 5 2 . 1 . 1 . . 1 Garrison 12 | . . . . . 3 . . . . . . . . 1 4 . . . . 1 . 3 Intercept . | . . . . . . . . . . . . . . . . . . . . . . . Searches Triggered . | . . . . . . . . . . . . . . . . . . . . . . . Construction Impeded 8 | . . . . . . . . . . . . . . 2 1 . . . . 1 . 4 Haulers Reinforced 5 | . . . . . . . . . . . . . . 1 1 . . . . 1 . 2 Active Scanning Responses . | . . . . . . . . . . . . . . . . . . . . . . . Cargo Convoy Interrupts . | . . . . . . . . . . . . . . . . . . . . . . . Stealth | -11 -10 -10 -8 -8 -6 -6 -6 -6 -5 -5 -5 -5 -5 -5 -4 -4 -4 -4 -3 -3 -3 -2 --------- Run | Yrd Mat Sub Rec Scr Fac Low Low Zio Pro Fac Ext Cet Arc Hub Fac Upp Upp War Pro Res Arm Res Distress Signals 55 | . 2 . . . 1 . . . . 1 2 2 . 6 8 . . 1 . 12 4 16 Communications Jammed . | . . . . . . . . . . . . . . . . . . . . . . . Distress Signals . | . . . . . . . . . . . . . . . . . . . . . . . Times Spotted 634 | . 33 36 2 . 24 16 11 1 12 35 55 10 4 58 71 17 25 36 20 34 31 103 Peak Tracking Total 12 | . 4 5 1 . 4 7 7 1 4 5 7 5 2 10 11 7 6 12 7 6 6 8 Tactical Retreats 25 | . . 5 . . 1 2 1 . . 1 5 . . 1 2 . 2 . . . . 5 Traps | -11 -10 -10 -8 -8 -6 -6 -6 -6 -5 -5 -5 -5 -5 -5 -4 -4 -4 -4 -3 -3 -3 -2 ------- Run | Yrd Mat Sub Rec Scr Fac Low Low Zio Pro Fac Ext Cet Arc Hub Fac Upp Upp War Pro Res Arm Res Traps Triggered 28 | . 1 4 . . . . . . . 5 3 . . 2 7 . . . . 2 1 3 Indirectly 4 | . . . . . . . . . . . . . . . 4 . . . . . . . Trap Hack Attempts . | . . . . . . . . . . . . . . . . . . . . . . . Triggered . | . . . . . . . . . . . . . . . . . . . . . . . Disarmed 6 | . . . . . . . . . . . 6 . . . . . . . . . . . Reprogrammed . | . . . . . . . . . . . . . . . . . . . . . . . Reused . | . . . . . . . . . . . . . . . . . . . . . . . Traps Extracted . | . . . . . . . . . . . . . . . . . . . . . . . Installed . | . . . . . . . . . . . . . . . . . . . . . . . Triggered . | . . . . . . . . . . . . . . . . . . . . . . . Machines | -11 -10 -10 -8 -8 -6 -6 -6 -6 -5 -5 -5 -5 -5 -5 -4 -4 -4 -4 -3 -3 -3 -2 ---------- Run | Yrd Mat Sub Rec Scr Fac Low Low Zio Pro Fac Ext Cet Arc Hub Fac Upp Upp War Pro Res Arm Res Machines Disabled 28 | . . . . . 2 . . . . 1 3 . 3 8 1 . . . . 2 3 5 Max in Single Turn 2 | . . . . . 1 . . . . 1 1 . 1 2 1 . . . . 1 1 1 Garrison Access 1 | . . . . . . . . . . . . . . 1 . . . . . . . . Network Hub 1 | . . . . . . . . . . . . . . 1 . . . . . . . . Machines Repaired . | . . . . . . . . . . . . . . . . . . . . . . . Machines Dismantled . | . . . . . . . . . . . . . . . . . . . . . . . Machines Sabotaged 4 | . 2 . 2 . . . . . . . . . . . . . . . . . . . Overloaded Fab Kills . | . . . . . . . . . . . . . . . . . . . . . . . Hacking | -11 -10 -10 -8 -8 -6 -6 -6 -6 -5 -5 -5 -5 -5 -5 -4 -4 -4 -4 -3 -3 -3 -2 --------- Run | Yrd Mat Sub Rec Scr Fac Low Low Zio Pro Fac Ext Cet Arc Hub Fac Upp Upp War Pro Res Arm Res Machines Accessed 98 | . 9 3 12 2 6 . 2 1 . 12 20 1 . 7 7 2 1 2 . 2 2 7 Terminals 75 | . 7 . 6 . 6 . 1 . . 10 19 1 . 7 6 1 . . . 2 2 7 Fabricators 1 | . . . . . . . . . . 1 . . . . . . . . . . . . Repair Stations 2 | . . . . . . . . . . 1 . . . . 1 . . . . . . . Recycling Units 9 | . 2 . 6 . . . . . . . 1 . . . . . . . . . . . Scanalyzers . | . . . . . . . . . . . . . . . . . . . . . . . Garrison Access . | . . . . . . . . . . . . . . . . . . . . . . . Total Hacks 347 | . 23 7 33 4 19 . 7 2 . 29 52 1 . 35 46 9 5 3 . 17 6 49 Successful 219 | . 18 7 25 4 9 . 7 2 . 18 33 1 . 18 24 9 5 3 . 11 3 22 Failed 128 | . 5 . 8 . 10 . . . . 11 19 . . 17 22 . . . . 6 3 27 Catastrophic 17 | . . . . . 1 . . . . 1 2 . . 3 6 . . . . . . 4 Database Lockouts . | . . . . . . . . . . . . . . . . . . . . . . . Manual 194 | . 13 . 22 . 13 . . . . 17 29 1 . 24 28 . . . . 5 5 37 Terminals 295 | . 18 . 16 . 19 . 6 . . 27 51 1 . 35 42 8 . . . 17 6 49 Fabricators 1 | . . . . . . . . . . 1 . . . . . . . . . . . . Repair Stations 5 | . . . . . . . . . . 1 . . . . 4 . . . . . . . Recycling Units 23 | . 5 . 17 . . . . . . . 1 . . . . . . . . . . . Scanalyzers . | . . . . . . . . . . . . . . . . . . . . . . . Garrison Access . | . . . . . . . . . . . . . . . . . . . . . . . Terminal Hacks 131 | . 4 7 . 4 4 . 7 2 . 8 23 1 . 13 16 9 5 3 . 9 1 15 Record 36 | . . 5 . 3 . . 6 . . . 3 . . . 1 8 5 2 . 2 . 1 Part Schematic 2 | . . . . . . . . 2 . . . . . . . . . . . . . . Robot Analysis 1 | . . . . . . . . . . . . . . . 1 . . . . . . . Prototype ID Bank 5 | . . . . . . . . . . . 4 . . . 1 . . . . . . . Open Door 14 | . . 1 . . . . 1 . . . 9 1 . . . 1 . 1 . . . . Branch Access Points 5 | . . . . . . . . . . 1 . . . 1 1 . . . . 1 . 1 Terminal Index 7 | . 1 . . . 1 . . . . . 1 . . 1 1 . . . . 1 . 1 Alert Level 9 | . . . . . . . . . . 1 . . . 2 3 . . . . 1 . 2 Unreport Threat 30 | . . . . . 1 . . . . 4 5 . . 6 5 . . . . 1 . 8 Locate Traps 11 | . 3 . . . 2 . . . . . . . . 1 2 . . . . . 1 2 Disarm Traps 1 | . . . . . . . . . . . 1 . . . . . . . . . . . Security Status 1 | . . . . . . . . . . . . . . . . . . . . 1 . . Recall Investigation 1 | . . . . . . . . . . . . . . . . . . . . 1 . . Recall Extermination 2 | . . . . . . . . . . 1 . . . 1 . . . . . . . . Recall Assault 1 | . . . . . . . . . . . . . . . . . . . . 1 . . Registered Prototypes 1 | . . . . . . . . . . 1 . . . . . . . . . . . . Zone Layout 2 | . . . . . . . . . . . . . . 1 1 . . . . . . . Proto ID Catalog 2 | . . 1 . 1 . . . . . . . . . . . . . . . . . . Fabricator Hacks 1 | . . . . . . . . . . 1 . . . . . . . . . . . . Build 1 | . . . . . . . . . . 1 . . . . . . . . . . . . Repair Station Hacks 2 | . . . . . . . . . . . . . . . 2 . . . . . . . Scan Component 1 | . . . . . . . . . . . . . . . 1 . . . . . . . Repair 1 | . . . . . . . . . . . . . . . 1 . . . . . . . Recycling Unit Hacks 12 | . 3 . 9 . . . . . . . . . . . . . . . . . . . Report Inventory 8 | . 2 . 6 . . . . . . . . . . . . . . . . . . . Retrieve Components 4 | . 1 . 3 . . . . . . . . . . . . . . . . . . . Scanalyzer . | . . . . . . . . . . . . . . . . . . . . . . . Garrison Access Hacks . | . . . . . . . . . . . . . . . . . . . . . . . Unauthorized Hacks 73 | . 11 . 16 . 5 . . . . 9 10 . . 5 6 . . . . 2 2 7 Terminals 63 | . 9 . 10 . 5 . . . . 8 9 . . 5 6 . . . . 2 2 7 Botnet 57 | . 7 . 6 . 5 . . . . 8 9 . . 5 6 . . . . 2 2 7 Sabotage 6 | . 2 . 4 . . . . . . . . . . . . . . . . . . . Fabricators . | . . . . . . . . . . . . . . . . . . . . . . . Repair Stations 1 | . . . . . . . . . . 1 . . . . . . . . . . . . Patch 1 | . . . . . . . . . . 1 . . . . . . . . . . . . Recycling Units 9 | . 2 . 6 . . . . . . . 1 . . . . . . . . . . . Tunnel 8 | . 2 . 6 . . . . . . . . . . . . . . . . . . . Fedlink 1 | . . . . . . . . . . . 1 . . . . . . . . . . . Scanalyzers . | . . . . . . . . . . . . . . . . . . . . . . . Garrison Access . | . . . . . . . . . . . . . . . . . . . . . . . Data Cores Recovered 6 | . . . . . . . . . . 1 1 . . 2 1 . . . . 1 . . Used . | . . . . . . . . . . . . . . . . . . . . . . . Hacking Detections 40 | . 3 . 5 . 6 . . . . 5 7 . . 6 3 . . . . 1 . 4 Full Trace Events 1 | . . . 1 . . . . . . . . . . . . . . . . . . . Feedback Events . | . . . . . . . . . . . . . . . . . . . . . . . Feedback Blocked . | . . . . . . . . . . . . . . . . . . . . . . . Robot Schematics Acquired . | . . . . . . . . . . . . . . . . . . . . . . . Robots Built . | . . . . . . . . . . . . . . . . . . . . . . . Authchips . | . . . . . . . . . . . . . . . . . . . . . . . Time . | . . . . . . . . . . . . . . . . . . . . . . . Total Robot Build Rating . | . . . . . . . . . . . . . . . . . . . . . . . Part Schematics Acquired 2 | . . . . . . . . 2 . . . . . . . . . . . . . . Parts Built 1 | . . . . . . . . . . 1 . . . . . . . . . . . . Authchips . | . . . . . . . . . . . . . . . . . . . . . . . Time 64 | . . . . . . . . . . 64 . . . . . . . . . . . . Total Part Build Rating 8 | . . . . . . . . . . 8 . . . . . . . . . . . . Part Studies Acquired . | . . . . . . . . . . . . . . . . . . . . . . . Parts Repaired 1 | . . . . . . . . . . . . . . . 1 . . . . . . . Time 28 | . . . . . . . . . . . . . . . 28 . . . . . . . Parts Recycled . | . . . . . . . . . . . . . . . . . . . . . . . Recycled Matter . | . . . . . . . . . . . . . . . . . . . . . . . Retrieved Matter . | . . . . . . . . . . . . . . . . . . . . . . . Retrieved Components 23 | . 10 . 13 . . . . . . . . . . . . . . . . . . . Parts Scanalyzed . | . . . . . . . . . . . . . . . . . . . . . . . Part Schematics Acquired . | . . . . . . . . . . . . . . . . . . . . . . . Parts Damaged . | . . . . . . . . . . . . . . . . . . . . . . . Bothacking | -11 -10 -10 -8 -8 -6 -6 -6 -6 -5 -5 -5 -5 -5 -5 -4 -4 -4 -4 -3 -3 -3 -2 ------------ Run | Yrd Mat Sub Rec Scr Fac Low Low Zio Pro Fac Ext Cet Arc Hub Fac Upp Upp War Pro Res Arm Res Used RIF Installer . | . . . . . . . . . . . . . . . . . . . . . . . Robots Hacked . | . . . . . . . . . . . . . . . . . . . . . . . Non-combat . | . . . . . . . . . . . . . . . . . . . . . . . Combat . | . . . . . . . . . . . . . . . . . . . . . . . Robot Hacks Applied . | . . . . . . . . . . . . . . . . . . . . . . . Relay Couplers Released . | . . . . . . . . . . . . . . . . . . . . . . . Fabnet Peak Effective % . | . . . . . . . . . . . . . . . . . . . . . . . Robots Rewired 26 | . . . . . . 2 . . . . 12 . . . . . 2 2 . . 8 . Allies Hacked 4 | . . . . . . . . . . . . . . . . . . 1 . . 3 . Hacks Repelled . | . . . . . . . . . . . . . . . . . . . . . . . Allies | -11 -10 -10 -8 -8 -6 -6 -6 -6 -5 -5 -5 -5 -5 -5 -4 -4 -4 -4 -3 -3 -3 -2 -------- Run | Yrd Mat Sub Rec Scr Fac Low Low Zio Pro Fac Ext Cet Arc Hub Fac Upp Upp War Pro Res Arm Res Total Allies 49 | . . . . . . 2 . 6 . . 24 5 . . . . 2 2 . . 8 . Largest Group 16 | . . . . . . 2 2 6 5 . 16 14 14 12 . . 2 4 . . 8 . Highest-Rated Group 872 | . . . . . . 59 59 126 112 . 573 872 872 686 . . 95 209 . . 336 . Highest-Rated Ally 159 | . . . . . . 30 30 39 39 . 159 153 147 96 . . 48 68 . . 42 . Total Orders . | . . . . . . . . . . . . . . . . . . . . . . . Ally Attacks 491 | . . . . . . . 5 . 47 . 222 27 28 122 . . 5 14 . . 21 . Total Damage 12653 | . . . . . . . 39 . 565 . 4311 555 794 4233 . . 152 1093 . . 911 . Kills 85 | . . . . . . . . . 7 . 33 . 3 31 . . 1 6 . . 4 . Allies Corrupted 1 | . . . . . . . . . . . . . . . . . . . . . 1 . Allies Melted 1 | . . . . . . . . . . . 1 . . . . . . . . . . . Intel | -11 -10 -10 -8 -8 -6 -6 -6 -6 -5 -5 -5 -5 -5 -5 -4 -4 -4 -4 -3 -3 -3 -2 ------- Run | Yrd Mat Sub Rec Scr Fac Low Low Zio Pro Fac Ext Cet Arc Hub Fac Upp Upp War Pro Res Arm Res Active Infowar (turns) 2 | . . . . . . . . 2 . . . . . . . . . . . . . . Optics 2 | . . . . . . . . 2 . . . . . . . . . . . . . . Robot Analysis Total 1 | . . . . . . . . . . . . . . . 1 . . . . . . . Derelict Logs Recovered 14 | . . 3 . 2 . 1 . 2 3 . . . . . . 1 2 . . . . . Drone Launches . | . . . . . . . . . . . . . . . . . . . . . . . Drone Recoveries . | . . . . . . . . . . . . . . . . . . . . . . . Exploration | -11 -10 -10 -8 -8 -6 -6 -6 -6 -5 -5 -5 -5 -5 -5 -4 -4 -4 -4 -3 -3 -3 -2 ------------- Run | Yrd Mat Sub Rec Scr Fac Low Low Zio Pro Fac Ext Cet Arc Hub Fac Upp Upp War Pro Res Arm Res Turns Passed 33330 | 57 1410 2567 1931 2316 2731 954 913 1760 922 2501 1699 452 390 916 2042 1298 1745 856 1390 1934 848 1698 Spaces Moved 23533 | 47 914 1492 1368 1919 1847 678 699 1416 670 1591 1083 300 275 475 1331 1052 1436 673 1145 1531 592 999 Core 14 | 14 . . . . . . . . . . . . . . . . . . . . . . Treads . | . . . . . . . . . . . . . . . . . . . . . . . Legs 23519 | 33 914 1492 1368 1919 1847 678 699 1416 670 1591 1083 300 275 475 1331 1052 1436 673 1145 1531 592 999 Wheels . | . . . . . . . . . . . . . . . . . . . . . . . Hover . | . . . . . . . . . . . . . . . . . . . . . . . Flight . | . . . . . . . . . . . . . . . . . . . . . . . Fastest Speed 50 | 50 120 120 120 120 120 120 120 120 120 120 120 120 120 110 110 110 110 110 110 110 110 110 Average Speed 118 | 99 120 143 134 120 120 120 120 121 120 120 120 120 120 120 110 110 110 110 110 110 110 111 Slowest Speed 193 | 120 120 190 190 120 190 120 120 190 193 190 120 120 120 190 183 110 110 110 110 176 110 180 Overloaded Moves . | . . . . . . . . . . . . . . . . . . . . . . . Propulsion Burnouts . | . . . . . . . . . . . . . . . . . . . . . . . Robots Hopped . | . . . . . . . . . . . . . . . . . . . . . . . Potential Cave-ins . | . . . . . . . . . . . . . . . . . . . . . . . Cave-ins Triggered . | . . . . . . . . . . . . . . . . . . . . . . . Exploration Rate (%) 66 | 4 97 82 99 86 34 50 71 81 72 35 96 86 97 46 33 93 97 68 98 47 41 23 Regions Visited 22 Branch Regions 16 Pre-discovered Areas 15 | . 2 3 6 1 . . . 2 . . . . . . . 1 . . . . . . Known Exits Taken 19 | . . . 1 1 1 1 1 1 1 1 1 1 1 1 1 1 1 1 1 1 1 . Unknown Exits Taken 3 | 1 1 1 . . . . . . . . . . . . . . . . . . . . Scrap Searched 40 | . . 7 . 4 . 7 3 4 1 . . . . . . 5 4 . 5 . . . Spaces Dug 25 | . . . . . . . . . . . . . . 1 10 1 13 . . . . . Terrain Destroyed 588 | . . 4 5 . 9 58 6 . . . 1 16 . 189 80 3 19 17 . 46 20 115 Melee . | . . . . . . . . . . . . . . . . . . . . . . . Projectile 98 | . . . . . . . . . . . 1 . . 20 28 3 6 . . . 4 36 AOE 490 | . . 4 5 . 9 58 6 . . . . 16 . 169 52 . 13 17 . 46 16 79 Terrain Rammed . | . . . . . . . . . . . . . . . . . . . . . . . Walls Destroyed . | . . . . . . . . . . . . . . . . . . . . . . . Machines Disabled . | . . . . . . . . . . . . . . . . . . . . . . . Actions | -11 -10 -10 -8 -8 -6 -6 -6 -6 -5 -5 -5 -5 -5 -5 -4 -4 -4 -4 -3 -3 -3 -2 --------- Run | Yrd Mat Sub Rec Scr Fac Low Low Zio Pro Fac Ext Cet Arc Hub Fac Upp Upp War Pro Res Arm Res Total 26940 | 54 1106 1785 1435 1932 2197 771 735 1460 721 2008 1347 380 331 616 1665 1139 1547 749 1234 1717 712 1299 Wait 1290 | . 87 178 33 . 241 1 1 16 9 279 57 35 45 10 162 7 17 9 . 62 1 40 Move 23510 | 46 913 1491 1367 1918 1846 677 698 1415 669 1590 1082 299 274 474 1329 1051 1435 672 1144 1530 591 999 Hop . | . . . . . . . . . . . . . . . . . . . . . . . Pick Up 8 | . 1 1 . . 2 1 . 1 . 1 . . . . . . . . . . . 1 Fast Attach 138 | 6 8 4 8 7 11 4 5 9 5 15 1 3 3 9 12 . . 1 3 9 4 11 Attach 11 | . . . . . 1 . . 3 1 . . . . . . . . . 1 . 1 4 Detach 24 | . 1 . 1 3 4 1 . 5 . 2 . . . . 2 . . . 1 . . 4 Swap 28 | . . 6 . . . . . . . . . 2 . . 8 6 6 . . . . . Drop 96 | . 3 4 6 4 14 3 3 9 2 9 . 2 4 3 8 . . 2 2 9 4 5 Fire 742 | . 56 51 6 . 61 29 16 1 16 47 36 7 1 54 80 17 19 20 18 31 41 135 Melee . | . . . . . . . . . . . . . . . . . . . . . . . Ram . | . . . . . . . . . . . . . . . . . . . . . . . Kick 84 | 2 3 . 7 . 1 4 1 . . 4 5 . . 1 4 . 2 . 49 1 . . Crush . | . . . . . . . . . . . . . . . . . . . . . . . Escape Stasis 8 | . . . . . . . . . . . 2 . . . 6 . . . . . . . Rewire 117 | . . . . . . 12 . 1 . . 54 . . . . . 15 8 . . 27 . Trap . | . . . . . . . . . . . . . . . . . . . . . . . Miscellaneous 884 | . 34 50 7 . 16 39 11 . 19 61 110 32 4 65 54 58 53 37 16 75 43 100 Route ------- -11/Scrapyard -10/Materials (discovered 5 exits: [*Mat x3] / [*Min] / *Sub) -10/Subcaves (discovered 3 exits: [*Mat x2] / *Rec) -8/Recycling (discovered 2 exits: *Fac / *Scr) -8/Scraptown (discovered 2 exits: *Fac x2) -6/Factory (discovered 2 exits: *Fac / *Low) -6/Lower Caves -6/Lower Caves (discovered 2 exits: *Fac / *Zio) -6/Zion -5/Proximity Caves -5/Factory (discovered 6 exits: *Fac x2 / Upp x2 / *Ext x2) -5/Extension (discovered 2 exits: *Fac / *Cet) -5/Cetus (discovered 2 exits: *Fac / *Arc) -5/Archives (discovered 3 exits: *Fac / *Hub x2) -5/Hub_04(d) (discovered 2 exits: *Fac x2) -4/Factory (discovered 4 exits: *Res x2 / *Upp x2) -4/Upper Caves -4/Upper Caves (discovered 2 exits: *Res / *War) -4/Warlord -3/Proximity Caves -3/Research (discovered 3 exits: *Arm / *Qua x2) -3/Armory -2/Research (discovered 2 exits: Tes x2) History --------- Turn | Location | Event 3 | -11/Scrapyard | Upgraded with Propulsion slot (x1) 3 | -11/Scrapyard | Upgraded with Utility slot (x1) 3 | -11/Scrapyard | Upgraded with Weapon slot (x1) 8 | -11/Scrapyard | Discovered new exit (range 16) 32 | -11/Scrapyard | Upgraded with Power slot (x1) 58 | -11/Scrapyard | Entered Materials 309 | -10/Materials | Build established: Mutant 314 | -10/Materials | Discovered new exit (range 8) 450 | -10/Materials | Discovered new exit (range 9) 475 | -10/Materials | Reached level 2 475 | -10/Materials | Upgraded with Weapon slot (x1) 838 | -10/Materials | Build established: Gunner 944 | -10/Materials | Discovered new exit (range 16) 979 | -10/Materials | Reached level 3 1111 | -10/Materials | Upgraded with Weapon slot (x1) 1248 | -10/Materials | Discovered new exit (range 4) 1323 | -10/Materials | Upgraded with Propulsion slot (x1) 1335 | -10/Materials | Discovered new exit (range 8) 1468 | -10/Materials | Entered Subcaves 1469 | -10/Subcaves | Approached by a straggling Scientist 1470 | -10/Subcaves | Reached level 4 1482 | -10/Subcaves | Learned Materials stockpile data 1616 | -10/Subcaves | Discovered new exit (range 7) 1631 | -10/Subcaves | Build established: Scavenger-Gunner 1936 | -10/Subcaves | Visited 4L-MR0's lab 2263 | -10/Subcaves | Discovered new exit (range 9) 2283 | -10/Subcaves | Learned Materials stockpile data 2746 | -10/Subcaves | Disturbed a concealed Subdweller 2836 | -10/Subcaves | Upgraded with Utility slot (x2) 2997 | -10/Subcaves | Visited Clippyterm 3002 | -10/Subcaves | Learned location of Extension (-5) 3002 | -10/Subcaves | Learned location of Section 7 (-3) 3063 | -10/Subcaves | Shifting Twisted Machinery released Shrapnel Trap 3621 | -10/Subcaves | Shifting Twisted Machinery released Sub. Power Source 3788 | -10/Subcaves | Discovered new exit (range 14) 4035 | -10/Subcaves | Entered Recycling 4037 | -8/Recycling | Reached level 5 4638 | -8/Recycling | Build established: Gunner 4809 | -8/Recycling | Discovered new exit (range 15) 4917 | -8/Recycling | Upgraded with Weapon slot (x1) 5074 | -8/Recycling | Scanned before Scraplab entrance 5267 | -8/Recycling | Reached level 6 5951 | -8/Recycling | Entered Scraplab 5962 | -8/Recycling | Discovered new exit (range 3) 5963 | -8/Recycling | Identified exit to Scraptown 5966 | -8/Recycling | Entered Scraptown 6100 | -8/Scraptown | Scanned Subdweller tech in exchange for log data 6103 | -8/Scraptown | Learned Research emergency access door positions 6104 | -8/Scraptown | Learned location of Zion (-6) 6178 | -8/Scraptown | Visited UFD Registry 6178 | -8/Scraptown | Registered with UFD as "Gravsys" 6178 | -8/Scraptown | Reached level 7 6280 | -8/Scraptown | Delivered Scrap Shield to a Scientist 6378 | -8/Scraptown | Visited Science Testing Area 6399 | -8/Scraptown | Visited DA-N13 Charitable Foundation 6418 | -8/Scraptown | Found DCF Scrap (28 items) 6455 | -8/Scraptown | Visited Supply Room 6513 | -8/Scraptown | Visited Research Penetration Think Tank 6542 | -8/Scraptown | Visited Abandonware Association 6563 | -8/Scraptown | Visited Derelict Rescue Squad 6654 | -8/Scraptown | Visited Science Guys 6702 | -8/Scraptown | Visited Curators Association 6765 | -8/Scraptown | Visited LU-1G1's Boring Crew 7107 | -8/Scraptown | Heard Great Nut preacher, LISTEN AND RECITE! 7215 | -8/Scraptown | Discovered new exit (range 13) 7349 | -8/Scraptown | Visited Symbiants 7359 | -8/Scraptown | Visited Shadow of the Wyrm 7393 | -8/Scraptown | Visited CPS Storage 7462 | -8/Scraptown | Visited Awakened 7749 | -8/Scraptown | Upgraded with Utility slot (x1) 7839 | -8/Scraptown | Learned abandonware demo "KABOOM.EXE" 7950 | -8/Scraptown | Build established: Derelict-Tank 8274 | -8/Scraptown | Discovered new exit (range 5) 8281 | -8/Scraptown | Identified exit to Factory 8282 | -8/Scraptown | Entered Factory 8284 | -6/Factory | Reached level 8 9015 | -6/Factory | Discovered new exit (range 11) 9029 | -6/Factory | Identified exit to Lower Caves 9147 | -6/Factory | Reached level 9 9276 | -6/Factory | Discovered new exit (range 6) 9287 | -6/Factory | Identified exit to Factory 9620 | -6/Factory | Build established: Hacker-Tank 9743 | -6/Factory | Core integrity fell below 50% 10444 | -6/Factory | Core integrity fell below 20% 10554 | -6/Factory | Reached level 10 10639 | -6/Factory | Garrison activated, responded to threat 10982 | -6/Factory | Build established: Hacker-Mutant 11013 | -6/Factory | Entered Lower Caves 11015 | -6/Lower Caves | UFD Scientist delivered a prototype 11018 | -6/Lower Caves | Found Prototype Protection 11018 | -6/Lower Caves | Identified Enh. Scrap Shield 11254 | -6/Lower Caves | Learned Factory interactive machine intel 11435 | -6/Lower Caves | Reached level 11 11525 | -6/Lower Caves | Attracted the attention of an 0b10 outpost 11610 | -6/Lower Caves | Build established: Hacker-Skirmisher 11774 | -6/Lower Caves | Discovered new exit (range 7) 11780 | -6/Lower Caves | Identified exit to Lower Caves 11967 | -6/Lower Caves | Entered another Lower Caves area 11967 | -6/Lower Caves | Accompanied by 2 allies 11976 | -6/Lower Caves | Reached level 12 12024 | -6/Lower Caves | Discovered exit to Factory (range 7) 12343 | -6/Lower Caves | Encountered a Warlord checkpoint 12471 | -6/Lower Caves | Attracted the attention of an 0b10 base 12546 | -6/Lower Caves | Destroyed 7 combat bots 12565 | -6/Lower Caves | Learned location of 1 exit from Factory 12565 | -6/Lower Caves | Learned location of 1 exit from Proximity Caves 12565 | -6/Lower Caves | Learned 8 Factory zone layouts 12565 | -6/Lower Caves | Learned Factory security intel 12597 | -6/Lower Caves | Upgraded with Propulsion slot (x1) 12853 | -6/Lower Caves | Discovered new exit (range 10) 12879 | -6/Lower Caves | Identified exit to Zion 12880 | -6/Lower Caves | Entered Zion 12897 | -6/Zion | Learned location of 1 exit from Factory 12934 | -6/Zion | System corruption cleaned by Quarantine Array 12974 | -6/Zion | Upgraded with Utility slot (x1) 13063 | -6/Zion | Found Prototype Processor 13063 | -6/Zion | Identified Spectral Analyzer 13086 | -6/Zion | Found Prototype Processor 13086 | -6/Zion | Identified Exp. Melee Analysis Suite 13093 | -6/Zion | Found Prototype Processor 13093 | -6/Zion | Identified Exp. Signal Interpreter 13123 | -6/Zion | Discovered new exit (range 12) 13147 | -6/Zion | Identified exit to Proximity Caves 13341 | -6/Zion | Gained Derelict followers 13541 | -6/Zion | Given the Hacking Drone Bay 13617 | -6/Zion | Learned location of Warlord (-4) 13964 | -6/Zion | Build established: Derelict-Skirmisher 14000 | -6/Zion | Found Prototype Energy Gun 14000 | -6/Zion | Identified Storm Laser 14354 | -6/Zion | Build established: Hacker-Tank 14640 | -6/Zion | Entered Proximity Caves 14640 | -5/Proximity Caves | Accompanied by 6 allies 14642 | -5/Proximity Caves | Reached level 13 14644 | -5/Proximity Caves | Upgraded with Power slot (x1) 14725 | -5/Proximity Caves | Build established: Hacker-Skirmisher 14732 | -5/Proximity Caves | Spotted B-75 Beast 14781 | -5/Proximity Caves | Destroyed B-75 Beast 14798 | -5/Proximity Caves | Lost 5 allies 14847 | -5/Proximity Caves | Reached level 14 14857 | -5/Proximity Caves | Upgraded with Utility slot (x1) 14975 | -5/Proximity Caves | Learned Factory garrison access intel 15185 | -5/Proximity Caves | Learned Factory emergency access door positions 15562 | -5/Proximity Caves | Entered Factory 15563 | -5/Factory | Identified exit to Factory 15563 | -5/Factory | Identified exit to Extension 15564 | -5/Factory | Reached level 15 15567 | -5/Factory | Loaded intel: 56 interactive machine locations 15568 | -5/Factory | Loaded intel: 4 garrison access locations 15867 | -5/Factory | Fabricated Gamma Bomb Array (x1) 15930 | -5/Factory | Core integrity fell below 50% 16022 | -5/Factory | Build established: Hacker-Tank 16210 | -5/Factory | Reached level 16 16968 | -5/Factory | Reached level 17 17684 | -5/Factory | Identified exit to Upper Caves 17917 | -5/Factory | Reached level 18 18063 | -5/Factory | Entered Extension 18065 | -5/Extension | Reached level 19 18104 | -5/Extension | Rescued a captive Derelict 18118 | -5/Extension | Rescued a captive Derelict 18200 | -5/Extension | Rescued a captive Derelict 18220 | -5/Extension | Rescued a captive Derelict 18221 | -5/Extension | Rescued a captive Derelict 18430 | -5/Extension | Rescued a captive Derelict 18473 | -5/Extension | Rescued a captive Derelict 18474 | -5/Extension | Rescued a captive Derelict 18511 | -5/Extension | Reached level 20 18545 | -5/Extension | Spotted B-75 Beast 18552 | -5/Extension | Spotted B-75 Beast 18554 | -5/Extension | Destroyed B-75 Beast 18571 | -5/Extension | Destroyed B-75 Beast 18601 | -5/Extension | Upgraded with Utility slot (x1) 18876 | -5/Extension | Reached level 21 18916 | -5/Extension | Rescued a captive Derelict 18916 | -5/Extension | Rescued a captive Derelict 19229 | -5/Extension | Rescued A7 19254 | -5/Extension | Rescued a captive Derelict 19256 | -5/Extension | Rescued a captive Derelict 19392 | -5/Extension | Loaded intel: 2 recycling unit locations 19409 | -5/Extension | Reached level 22 19429 | -5/Extension | Discovered exit to Factory (range 10) 19430 | -5/Extension | Discovered new exit (range 6) 19563 | -5/Extension | First assault squad dispatched 19637 | -5/Extension | Identified exit to Cetus 19638 | -5/Extension | Lost 5 allies 19762 | -5/Extension | Entered Cetus 19762 | -5/Cetus | Accompanied by 11 allies (A7) 19767 | -5/Cetus | Acquired a Cetus Manufacturing Module code from A7 19778 | -5/Cetus | Spotted Cetus Guard 19778 | -5/Cetus | Spotted Cetus Guard 19780 | -5/Cetus | Spotted Cetus Guard 19781 | -5/Cetus | Spotted Cetus Guard 19791 | -5/Cetus | Destroyed Cetus Guard 19792 | -5/Cetus | Destroyed Cetus Guard 19793 | -5/Cetus | Destroyed Cetus Guard 19794 | -5/Cetus | Destroyed Cetus Guard 19822 | -5/Cetus | Upgraded with Utility slot (x1) 19943 | -5/Cetus | Started Cetus Manufacturing Module 19956 | -5/Cetus | Escorted A7 to Cetus Mainframe 19968 | -5/Cetus | Manufactured an Enhanced Grunt 19993 | -5/Cetus | Manufactured an Enhanced Grunt 20018 | -5/Cetus | Manufactured an Enhanced Grunt 20043 | -5/Cetus | Manufactured an Enhanced Grunt 20050 | -5/Cetus | Discovered new exit (range 15) 20068 | -5/Cetus | Manufactured an Enhanced Grunt 20074 | -5/Cetus | Spotted Cetus Guard 20074 | -5/Cetus | Spotted Cetus Guard 20076 | -5/Cetus | Spotted Cetus Guard 20077 | -5/Cetus | Spotted Cetus Guard 20079 | -5/Cetus | Destroyed Cetus Guard 20081 | -5/Cetus | Destroyed Cetus Guard 20082 | -5/Cetus | Destroyed Cetus Guard 20083 | -5/Cetus | Reached level 23 20083 | -5/Cetus | Destroyed Cetus Guard 20087 | -5/Cetus | Discovered exit to Factory (range 15) 20093 | -5/Cetus | Met Revision 17 20187 | -5/Cetus | Identified exit to Archives 20214 | -5/Cetus | Entered Archives 20214 | -5/Archives | Accompanied by 14 allies (A7) 20219 | -5/Archives | Received a hacking code to weaken MAIN.C 20252 | -5/Archives | Discovered new exit (range 16) 20280 | -5/Archives | Unable to access archive contents 20295 | -5/Archives | Discovered new exit (range 15) 20313 | -5/Archives | Discovered exit to Factory (range 14) 20377 | -5/Archives | Identified exit to Hub_04(d) 20604 | -5/Archives | Entered Hub_04(d) 20604 | -5/Hub_04(d) | Accompanied by 12 allies 20604 | -5/Hub_04(d) | Discovered exit to Factory (range 10) 20777 | -5/Hub_04(d) | Garrison activated, responded to threat 20845 | -5/Hub_04(d) | Reached level 24 20880 | -5/Hub_04(d) | Lost 3 allies 20904 | -5/Hub_04(d) | First assault squad dispatched 21002 | -5/Hub_04(d) | Lost 9 allies 21019 | -5/Hub_04(d) | Destroyed 8 combat bots 21085 | -5/Hub_04(d) | Discovered exit to Factory (range 7) 21131 | -5/Hub_04(d) | Upgraded with Utility slot (x1) 21337 | -5/Hub_04(d) | Network Hub disabled 21343 | -5/Hub_04(d) | Spotted Lightning 21346 | -5/Hub_04(d) | Spotted Lightning 21348 | -5/Hub_04(d) | Spotted Lightning 21365 | -5/Hub_04(d) | Destroyed Lightning 21385 | -5/Hub_04(d) | Destroyed Lightning 21427 | -5/Hub_04(d) | Core integrity fell below 20% 21427 | -5/Hub_04(d) | Destroyed Lightning 21464 | -5/Hub_04(d) | Found Prototype Device 21464 | -5/Hub_04(d) | Identified Exp. Phase Shifter 21469 | -5/Hub_04(d) | Found Prototype Device 21469 | -5/Hub_04(d) | Identified Exp. EM Shield 21503 | -5/Hub_04(d) | Found Prototype Processor 21503 | -5/Hub_04(d) | Identified Exp. Targeting Computer 21520 | -5/Hub_04(d) | Entered Factory 21521 | -4/Factory | Core integrity fell below 50% 21522 | -4/Factory | Reached level 25 21522 | -4/Factory | Upgraded with Power slot (x1) 22003 | -4/Factory | Discovered new exit (range 7) 22295 | -4/Factory | Garrison activated, responded to threat 22605 | -4/Factory | Reached level 26 22661 | -4/Factory | Garrison activated, responded to threat 22689 | -4/Factory | Core integrity fell below 20% 22730 | -4/Factory | Destroyed 24 combat bots 22735 | -4/Factory | Identified exit to Upper Caves 23194 | -4/Factory | Discovered new exit (range 15) 23212 | -4/Factory | Identified exit to Research 23257 | -4/Factory | Repaired Lyr. Heavy Armor Plating 23520 | -4/Factory | First assault squad dispatched 23562 | -4/Factory | Entered Upper Caves 23562 | -4/Upper Caves | Spotted B-86 Titan 23568 | -4/Upper Caves | Destroyed B-86 Titan 23961 | -4/Upper Caves | Learned Research non-interactive machine intel 24048 | -4/Upper Caves | Attracted the attention of an 0b10 base 24085 | -4/Upper Caves | Destroyed 7 combat bots 24127 | -4/Upper Caves | Learned location of 2 exits from Lower Caves 24127 | -4/Upper Caves | Learned 8 Factory zone layouts 24127 | -4/Upper Caves | Learned Extension stockpile data 24185 | -4/Upper Caves | Attracted the attention of an 0b10 checkpoint 24215 | -4/Upper Caves | Reached level 27 24766 | -4/Upper Caves | Discovered new exit (range 9) 24811 | -4/Upper Caves | Identified exit to Upper Caves 24860 | -4/Upper Caves | Entered another Upper Caves area 24886 | -4/Upper Caves | Discovered exit to Research (range 15) 24994 | -4/Upper Caves | Attracted the attention of an 0b10 outpost 25195 | -4/Upper Caves | Attracted the attention of an 0b10 checkpoint 25460 | -4/Upper Caves | Learned location of 1 exit from Factory 25460 | -4/Upper Caves | Learned Extension trap positions 25465 | -4/Upper Caves | Learned location of 1 exit from Proximity Caves 25899 | -4/Upper Caves | Discovered new exit (range 10) 25918 | -4/Upper Caves | Identified exit to Warlord 25941 | -4/Upper Caves | Learned Research stockpile data 26605 | -4/Upper Caves | Entered Warlord 26605 | -4/Warlord | Accompanied by 2 allies 26709 | -4/Warlord | Discovered new exit (range 8) 26719 | -4/Warlord | Identified exit to Proximity Caves 26985 | -4/Warlord | Visited the Vortex Lab 26987 | -4/Warlord | Warlord's base attacked by MAIN.C 27157 | -4/Warlord | Found Prototype Energy Gun 27157 | -4/Warlord | Identified Plasma Storm 27298 | -4/Warlord | Spotted B-90 Cyclops 27298 | -4/Warlord | P-80 Master assimilated allied Veteran 7a 27307 | -4/Warlord | Spotted Executioner 27317 | -4/Warlord | Warlord forces counterattacked 27324 | -4/Warlord | Destroyed B-90 Cyclops 27329 | -4/Warlord | Lost 3 allies 27329 | -4/Warlord | P-70 Sage assimilated allied LG-JH4(m) 27335 | -4/Warlord | Destroyed Executioner 27352 | -4/Warlord | Spotted B-86 Titan 27364 | -4/Warlord | Destroyed 25 combat bots 27387 | -4/Warlord | Spotted B-86 Titan 27387 | -4/Warlord | Spotted B-90 Cyclops 27387 | -4/Warlord | Spotted B-86 Titan 27387 | -4/Warlord | Spotted B-90 Cyclops 27387 | -4/Warlord | Destroyed B-86 Titan 27390 | -4/Warlord | Reached level 28 27390 | -4/Warlord | Destroyed B-86 Titan 27420 | -4/Warlord | Destroyed 8 combat bots 27461 | -4/Warlord | Entered Proximity Caves 27863 | -3/Proximity Caves | Attracted the attention of an 0b10 outpost 27918 | -3/Proximity Caves | Destroyed 11 combat bots 28851 | -3/Proximity Caves | Entered Research 28852 | -3/Research | Identified exit to Armory 28853 | -3/Research | Reached level 29 28855 | -3/Research | Loaded intel: 58 non-interactive machine locations 29027 | -3/Research | Garrison activated, responded to threat 29082 | -3/Research | Revision forces began assault on 0b10 29082 | -3/Research | Met up with Revision 17++ 29267 | -3/Research | Spotted B-86 Titan 29280 | -3/Research | Destroyed B-86 Titan 29280 | -3/Research | Murdered Revision 29290 | -3/Research | Spotted B-86 Titan 29399 | -3/Research | Identified exit to Quarantine 29553 | -3/Research | Lost 3 allies 29582 | -3/Research | Research terminal network offline 29878 | -3/Research | Spotted B-90 Cyclops 29904 | -3/Research | Destroyed B-90 Cyclops 30591 | -3/Research | Spotted Striker 30691 | -3/Research | Spotted Striker 30692 | -3/Research | Destroyed Striker 30785 | -3/Research | Entered Armory 30786 | -3/Armory | Met VL-GR5, who suggested a friendly competition 30787 | -3/Armory | Reached level 30 31184 | -3/Armory | P-80 Master assimilated allied Champion 8c 31191 | -3/Armory | P-80 Master assimilated allied Champion 8f 31196 | -3/Armory | P-80 Master assimilated allied Champion 8b 31218 | -3/Armory | Destroyed 7 combat bots 31357 | -3/Armory | Spotted B-86 Titan 31365 | -3/Armory | Destroyed B-86 Titan 31457 | -3/Armory | Lost 4 allies 31559 | -3/Armory | Discovered new exit (range 3) 31562 | -3/Armory | Identified exit to Research 31576 | -3/Armory | Found VL-GR5's Exoskeleton "Deathgrip" 31577 | -3/Armory | Attached VL-GR5's Exoskeleton "Deathgrip", gained temporary slots: Weapon x3 31633 | -3/Armory | Entered Research 31635 | -2/Research | Reached level 31 31967 | -2/Research | Identified exit to Testing 32165 | -2/Research | Garrison activated, responded to threat 32176 | -2/Research | Core integrity fell below 50% 32291 | -2/Research | Destroyed 7 combat bots 32545 | -2/Research | Found Prototype Hackware 32545 | -2/Research | Identified Exp. Hacking Suite 32734 | -2/Research | Reached level 32 32843 | -2/Research | Build established: Wizard-Executioner 32871 | -2/Research | Destroyed 7 combat bots 33114 | -2/Research | Destroyed 7 combat bots 33133 | -2/Research | First assault squad dispatched 33242 | -2/Research | Destroyed 8 combat bots 33299 | -2/Research | Core integrity fell below 20% 33326 | -2/Research | Destroyed 7 combat bots 33331 | -2/Research | Destroyed by H-81 Overseer with Heavy Linear Accelerator Last Messages --------------- 33304_ Destroyed Imp. Kinecellerator. 33304_ Adv. Transmission Jammer melted. 33304_ Enh. Optical Array melted. 33304_ H-81 Overseer destroyed. 33304_ ALERT: Construction progress impeded, dispatching reinforcements to local area. 33305_ H-88 Terminator system terminally corrupted. 33305_ Adv. Targeting Computer fried. 33313_ U-05 Engineer lays Concrete. 33314_ U-05 Engineer destroyed. 33317_ Penetrated by Slug. 33317_ Centrium Medium Armor Plating destroyed. 33317_ Knocked back. 33319_ Acquired 12 matter. 33321_ Slug penetrates Wall. [Achievement: There's More Where That Came From] 33323_ Knocked back. 33324_ Acquired 83 matter. 33324_ Knocked back. 33328_ Slug penetrates Wall. 33328_ H-81 Overseer IFF system glitched. Map ----- +----------------------------------------------------+ | ?????????????????????????????????????????????????? | | ?????????????????????????????????????????????????? | | ?????????????????????????????????????????????????? | | ?????????????????????????????????????????????????? | | ?????????????????????????????????????????????????? | | ?????????????????????????????????????????????????? | | ?????????????????????????????????????????????????? | | ?????????????????????????????????????????????????? | | ?????????????????????????????????????????????????? | | ?????????????????????????????????????????????????? | | ?????????????????????????????????????????????????? | | ?????????????????????????????????????????????????? | | ?????????????????????????????????????????????????? | | ?????????????????????????????????????????????????? | | ?????????????????????????????????????????????????? | | ?????????????????########????????????????????????? | | ?????????????????# #????????????????????????? | | ???????????????#?# #????????????????????????? | | ???????????????# # % #????????????????????????? | | ???????????????#k# #????????? ?????????????? | | ??????????###### ; "????????? ?????????????? | | ??????????# ; ; ##???????? ?????????????? | | ????????????# ; "#???????? ????#????????? | | ????????????# =%! [ ########?? ?? #??? ??? | | ?##########?# ;% !%! ; ### / ??? | | ?# #?# ; [ @ = # #? #???? | | ?# #?# H ; %%%[ # #???? | | ?# T #?# ; =% / %![==[######## ###?? | | ?# #?# # [ ; =[% !%#=% k ? | | ?# #?# # # !H!%%#% % % ? | | ?# #?# ######## ![ #=!=* %% | | ?# #?# #??????# % %%/ %!% ? | | ?# / #?# #?????# #|=%=### #???? | | ?# / ///[### % #?????## = %=! # #????????? | | ######+###### ########### # ##!%[|#[#????????? | | *[ [ %%= %% kk !=%%=% # #????????? | | =![*% [ = % % =!*!!! # #????????? | | / [%==%* =[*=* # #????????? | | =[%[%=!%* k =%! ###????????? | | #################### ##########/#####?????????? | | ??????????# ????# #???????? ????????????? | | ?????????# # ???# #???????? ???????????? | | ????????#####??# #???????? ]] #?????????? | | " #??????????????# ^ #???????? ]] #?????????? | | " #??????????????# ???????? #?????????? | | " #??????????????# ##??????? #?????????? | | #??????????????######???????? #?????????? | | ? ? #???????????????????????????? ?????????? | | ?####????????????????????????????########????????? | | ?????????????????????????????????????????????????? | +----------------------------------------------------+ Best States ------------- Heat Dissipation 133 Coolant Potential 100 Energy Generation 70 Energy Capacity 865 Matter Stores 300 Matter Capacity 300 Sight Range 16 Robot Scan Range 18 Terrain Scan Density 10 Base Temperature (-) 200 Armor Coverage 825 Resistance: KI 25 Resistance: TH 15 Resistance: EM 75 Phase Shifting 20 Evasion (%) 90 Targeting Accuracy 12 Offensive Hacking 45 Defensive Hacking 29 Item Schematics ----------------- Riot Gun | -6/Zion | Free Beamcaster | -6/Zion | Free Robot Schematics ------------------ None Fabricated ------------ Gamma Bomb Array | x1 | -5/Factory | Preloaded Repaired ---------- Lyr. Heavy Armor Plating | 37% | -4/Factory Studied --------- None Alien Tech Used ----------------- None Achievements -------------- About That Survey... Betrayal Most Foul Loot Taster My Business Is Booming Out Of My Way Survival Of The Most Covered There's More Where That Came From Challenges ------------ None RPGLIKE | -11 -10 -10 -8 -8 -6 -6 -6 -6 -5 -5 -5 -5 -5 -5 -4 -4 -4 -4 -3 -3 -3 -2 --------- Run | Yrd Mat Sub Rec Scr Fac Low Low Zio Pro Fac Ext Cet Arc Hub Fac Upp Upp War Pro Res Arm Res Levels Raised 31 | . 2 1 2 1 3 1 1 . 2 4 4 1 . 1 2 1 . 1 . 1 1 2 XP Earned 50793 | 3000 3630 2050 2800 650 4760 2050 1550 500 2239 5870 6116 876 368 2471 2590 524 433 1086 1083 1736 1111 3300 XP Spent 44515 | 2750 2700 1900 1850 2750 2995 1375 1100 1700 3300 4500 3700 3600 . 2900 3205 . 1100 2040 . 1050 . . Upgrades 92 | 7 3 2 6 10 16 11 1 1 3 7 3 2 . 1 9 . 1 6 . 3 . . Power Slot 3 | 1 . . . . . . . . 1 . . . . . 1 . . . . . . . Propulsion Slot 3 | 1 1 . . . . . 1 . . . . . . . . . . . . . . . Utility Slot 9 | 1 . 2 . 1 . . . 1 1 . 1 1 . 1 . . . . . . . . Weapon Slot 4 | 1 2 . 1 . . . . . . . . . . . . . . . . . . . Core Integrity 23 | . . . . . 5 11 . . . . . . . . 7 . . . . . . . Heat Dissipation 18 | . . . 5 . 7 . . . . . . . . . . . . 6 . . . . Mass Support 2 | 1 . . . . . . . . . . . . . . 1 . . . . . . . Inventory Capacity 1 | 1 . . . . . . . . . . . . . . . . . . . . . . Sensor Range 9 | . . . . 9 . . . . . . . . . . . . . . . . . . Ranged Accuracy 7 | 1 . . . . . . . . 1 4 . 1 . . . . . . . . . . Hack Attack % 3 | . . . . . 2 . . . . . 1 . . . . . . . . . . . Hack Defense % 3 | . . . . . 2 . . . . . 1 . . . . . . . . . . . TH Resistance % 3 | . . . . . . . . . . . . . . . . . . . . 3 . . TH Damage % 4 | . . . . . . . . . . 3 . . . . . . 1 . . . . . Protomatter Created 9348 | . 301 468 87 . 151 392 137 . 151 541 572 302 . 918 648 441 341 717 531 699 636 1315 Integrity Restored 18719 | . 695 784 125 . 336 909 207 . 381 1365 2323 651 72 1383 1179 1314 1165 819 307 1543 908 2253 Core 14298 | . 554 646 55 . 213 909 207 . 381 1365 1584 127 22 948 1179 1314 201 482 199 917 742 2253 Parts 4421 | . 141 138 70 . 123 . . . . . 739 524 50 435 . . 964 337 108 626 166 . Protomatter Decayed 5197 | . 45 226 43 . . 75 138 . 54 86 238 54 44 560 126 . . 113 . 2830 471 94 Game ------ Seed RainbowTractorDatajack Manual? 0 Play Time 05:52:40 Cumulative 165.5 hours Start 2025.11.09 @ 01:02:04 End 2025.11.10 @ 04:29:15 Sessions 3 Manual Loads 0 Difficulty Rogue Special Mode Winter2019/RPGLIKE Game No. 73 Rogue 69 Adventurer 4 Explorer 0 Win Type - Total 4 Types 3/0/1/0/0/0/0/0/0/0 Lore% 66 Gallery% 50 Achievement% 37 Wizard Run 0 Options --------- Layout 0 ASCII 0 Keyboard 0 Movement Arrows Keybinds 0 Fullscreen 2 Font 32/SmallcapsGlow Map View 88x55 Zoom Use 0% Tactical HUD 1 Map Filters NONE Filters NONE Steam 1 RUN: 574d9e96-32e4-4218-a050-d328a6247824